{"text_format":"1","workbook":"xlsx","n_sheets":5,"sheets":["1.Marée","2.Logbook","3.Tonnage bord","4.Statistiques","5.Définitions"],"not_rendered":{"charts":0,"images":2,"macros":1,"external_links":2,"defined_names":26,"comments":1,"pivot_tables":0},"unopened":[],"bounds":{"document_bytes":16777216,"sheet_cells":100000,"rows_first":2000,"rows_last":500,"rows_between":2000,"halvings":0,"cell_chars":16384,"cell_head_chars":4096},"cells_cut":0,"cells_raw":0,"read":"whole","date_system":"1900"}

{"sheet":"1.Marée","index":0,"n_rows":42,"n_cols":19,"rows_kept":42,"cut":false,"hidden":false,"merged":[[12,5,12,6],[1,5,1,6],[2,5,2,6],[3,5,3,6],[4,5,4,6],[5,5,5,6],[6,5,6,6],[7,5,7,6],[9,3,9,6],[10,3,10,6],[19,5,19,6],[20,5,20,6],[13,5,13,6],[14,5,14,6],[15,5,15,6],[17,5,17,6],[18,5,18,6]]}
[null,null,null,null,null,null,null,null,null,null,null,"Coche","Type DCP","Type bouées","Action DCP","Liste ZEE"]
[null,"Navire",null,null,":","VIA AVENIR",null,null,null,null,null,"x","N","D+","MISE A L'EAU DCP ECO","Eaux internationales"]
[null,"Pavillon",null,null,":","Français",null,null,null,null,null,"X","A","M3I","CHANGEMENT DE  BALISE","Angola",null,null,"en cas de déchargement partiel"]
[null,"Numéro d'immatriculation",null,null,":","CC 752564",null,null,null,null,null,null,null,"M4I","VISITE AVEC PECHE","Bénin",null,null,"merci de noter ci-dessous le ROB  (Reste à bord)  "]
[null,"Port d'immatriculation",null,null,":","Concarneau",null,null,null,null,null,null,null,null,"VISITE SANS PECHE","Cameroun",null,null,"Albacore +10"]
[null,"Signal d'appel international",null,null,":",228128000,null,null,null,null,null,null,null,null,"RETRAIT","Cap Vert",null,null,"Albacore -10"]
[null,"Numéro OMI",null,null,":",8812186,null,null,null,null,null,null,null,null,"PERTE / FIN TRANSMISSION BALISE","Chagos",null,null,"Listao"]
[null,"Numéro CFR",null,null,":","FRA 000752564",null,null,null,null,null,null,null,null,null,"Comores",null,null,"Patudo +10"]
[null,null,null,null,null,null,null,null,null,null,null,null,null,null,null,"Congo Brazzaville",null,null,"Patudo -10"]
[null,"Patron          :",null,"PLOUHINEC GWENOLE",null,null,null,null,null,null,null,null,null,null,null,"Côte d'Ivoire",null,null,"Germon"]
[null,"Marée          :",null,"GP-01-2020",null,null,null,null,null,null,null,null,null,null,null,"Gabon"]
[null,null,null,null,null,null,null,null,null,null,null,null,null,null,null,"Gambie"]
[null,"Départ       -",null,"Port",":","Abidjan",null,null,null,null,null,null,null,null,null,"Ghana"]
[null,null,null,"Date",":","2020-01-12",null,null,null,null,null,null,null,null,null,"Glorieuses"]
[null,null,null,"Heure",":","15:45:00",null,null,null,null,null,null,null,null,null,"Guinée Bissau"]
[null,null,null,"Loch",":",0,null,null,null,null,null,null,null,null,null,"Guinée Conakry"]
[null,null,null,null,null,null,null,null,null,null,null,null,null,null,null,"Guinée Equatoriale"]
[null,"Arrivée       -",null,"Port",":","Abidjan",null,null,null,null,null,null,null,null,null,"Ile Maurice"]
[null,null,null,"Date",":","2020-02-24",null,null,null,null,null,null,null,null,null,"Iles Eparses"]
[null,null,null,"Heure",":","13:00:00",null,null,null,null,null,null,null,null,null,"Indonésie"]
[null,null,null,"Loch",":",8453,null,null,null,null,null,null,null,null,null,"Kenya"]
[null,null,null,null,null,null,null,null,null,null,null,null,null,null,null,"La Réunion"]
[null,{"$f":"Date_retour-Date_départ","v":43},null,"Jours de mer pendant la marée.",null,null,null,8453,null,"milles parcourus",null,null,null,null,null,"Libéria"]
[null,null,null,null,null,null,null,null,null,null,null,null,null,null,null,"Madagascar"]
[null,"Nombre de coups de filets dans la marée ",null,null,null,null,null,"   Portants ",":",24,null,null,null,null,null,"Maldives"]
[null,null,null,null,null,null,null,"   Nuls ",":",14,null,null,null,null,null,"Maurice"]
[null,null,null,null,null,null,null,"   Total ",":",{"$f":"J25+J26","v":38},null,null,null,null,null,"Mauritanie"]
[null,null,null,null,null,null,null,null,null,null,null,null,null,null,null,"Mayotte"]
[null,"Albacore",":",444,null,null,"Autres",{"$f":"SUM('2.Logbook'!Z31:Z532)","v":0},null,null,null,null,null,null,null,"Mozambique"]
[null,"Listao",":",0,null,null,"Rejets",{"$f":"SUM('2.Logbook'!AC31:AC532)","v":0},null,null,null,null,null,null,null,"Namibie"]
[null,"Patudo",":",26,null,null,null,null,null,null,null,null,null,null,null,"Nigéria"]
[null,"Germon",":",0,null,null,null,null,null,null,null,null,null,null,null,"Oman"]
[null,null,null,null,null,null,null,null,null,null,null,null,null,null,null,"Sao Tome e Principe"]
[null,"Total",":",{"$f":"D29+D31","v":470},null,null,null,null,null,null,null,null,null,null,null,"Sénégal"]
[null,null,null,null,null,null,null,null,null,null,null,null,null,null,null,"Seychelles"]
[]
[]
[]
[]
[]
[]
[null,null,null,null,null,null,null,null,null,null,null,null,null,null,null,"Zaïre"]

{"sheet":"2.Logbook","index":1,"n_rows":93,"n_cols":47,"rows_kept":93,"cut":false,"hidden":false,"merged":[[12,29,13,35],[14,29,15,35],[16,29,17,35],[18,29,29,29],[14,6,15,7],[16,6,17,7],[18,6,29,6],[18,7,29,7],[10,29,10,46],[26,23,26,25],[26,26,26,28],[24,23,25,25],[24,26,25,28],[24,42,25,42],[18,34,29,34],[18,35,29,35],[18,36,21,36],[22,36,25,36],[26,36,29,36],[18,23,19,25],[18,38,21,38],[22,38,25,38],[26,38,29,38],[18,31,29,31],[24,2,29,2],[12,3,17,3],[18,3,23,3],[24,3,29,3],[12,4,17,4],[18,4,23,4],[24,4,29,4],[24,11,25,14],[26,21,26,22],[26,11,26,12],[26,13,26,14],[26,15,26,16],[26,17,26,18],[26,19,26,20],[24,17,25,20],[24,21,25,22],[18,21,19,22],[24,15,25,16],[12,0,17,0],[18,0,23,0],[24,0,29,0],[12,1,17,1],[18,1,23,1],[24,1,29,1],[12,2,17,2],[18,2,23,2],[12,11,13,28],[14,11,15,28],[12,8,13,10],[14,8,15,10],[16,8,17,10],[18,8,29,8],[18,9,29,9],[18,10,29,10],[12,5,17,5],[18,5,23,5],[24,5,29,5],[12,6,13,7],[16,11,17,28],[18,11,19,14],[18,15,19,16],[18,17,19,20],[24,44,25,44],[26,44,27,44],[28,44,29,44],[24,45,25,45],[26,45,27,45],[28,45,29,45],[12,41,13,45],[14,41,15,45],[26,42,27,42],[28,42,29,42],[24,43,25,43],[26,43,27,43],[28,43,29,43],[16,41,17,45],[18,42,19,43],[20,42,21,43],[22,42,23,43],[18,32,29,32],[18,33,29,33],[18,30,29,30],[22,11,23,14],[22,15,23,16],[22,17,23,20],[22,21,23,22],[18,26,19,28],[20,11,21,14],[20,15,21,16],[20,17,21,20],[20,21,21,22],[20,23,21,25],[20,26,21,28],[6,0,6,5],[7,0,7,5],[8,0,8,5],[10,0,10,10],[9,0,9,45],[11,0,11,46],[6,6,6,10],[7,6,7,10],[8,6,8,10],[5,46,8,46],[10,11,10,28],[6,11,6,17],[6,18,6,21],[7,11,7,17],[7,18,7,21],[8,11,8,17],[8,18,8,21],[6,22,8,24],[6,25,8,28],[6,29,6,35],[7,29,7,35],[8,29,8,35],[6,36,6,45],[7,36,7,45],[8,36,8,45],[22,23,23,25],[12,46,13,46],[14,46,15,46],[16,46,17,46],[18,46,29,46],[18,44,19,45],[24,39,29,39],[24,40,29,40],[12,36,13,40],[14,36,15,40],[16,36,17,40],[18,41,21,41],[26,41,29,41],[22,41,25,41],[18,39,19,40],[20,39,21,40],[22,39,23,40],[18,37,21,37],[22,37,25,37],[26,37,29,37],[22,26,23,28],[20,44,21,45],[22,44,23,45],[0,0,4,10],[5,0,5,5],[0,46,4,46],[3,29,3,35],[5,29,5,35],[3,36,3,45],[2,22,5,28],[0,29,1,45],[0,22,1,28],[0,11,4,21],[5,11,5,17],[5,18,5,21],[5,6,5,10],[2,29,2,35],[4,29,4,35],[2,36,2,45],[4,36,4,45],[5,36,5,45]]}
["DEPART / SALIDA / DEPARTURE",null,null,null,null,null,null,null,null,null,null,"ARRIVEE / LLEGAGA / ARRIVAL",null,null,null,null,null,null,null,null,null,null,"PATRON / PATRON / MASTER",null,null,null,null,null,null,"NAVIRE / BARCO / VESSEL",null,null,null,null,null,null,null,null,null,null,null,null,null,null,null,null,"FEUILLE / HOJA / SHEET"]
[]
[null,null,null,null,null,null,null,null,null,null,null,null,null,null,null,null,null,null,null,null,null,null,{"$f":"Patron","v":"PLOUHINEC GWENOLE"},null,null,null,null,null,null,"Vessel",null,null,null,null,null,null,{"$f":"Navire","v":"VIA AVENIR"}]
[null,null,null,null,null,null,null,null,null,null,null,null,null,null,null,null,null,null,null,null,null,null,null,null,null,null,null,null,null,"Flag",null,null,null,null,null,null,{"$f":"Pavillon","v":"Français"}]
[null,null,null,null,null,null,null,null,null,null,null,null,null,null,null,null,null,null,null,null,null,null,null,null,null,null,null,null,null,"Immatriculation number",null,null,null,null,null,null,{"$f":"Immatriculation","v":"CC 752564"}]
["PORT / PUERTO / PORT",null,null,null,null,null,{"$f":"Port_départ","v":"Abidjan"},null,null,null,null,"PORT / PUERTO / PORT",null,null,null,null,null,null,{"$f":"Port_retour","v":"Abidjan"},null,null,null,null,null,null,null,null,null,null,"Immatriculation port",null,null,null,null,null,null,{"$f":"Port_immatriculation","v":"Concarneau"}]
["DATE / FECHA / DATE",null,null,null,null,null,{"$f":"Date_départ","v":"2020-01-12"},null,null,null,null,"DATE / FECHA / DATE",null,null,null,null,null,null,{"$f":"Date_retour","v":"2020-02-24"},null,null,null,"MAREE",null,null,{"$f":"Marée","v":"GP-01-2020"},null,null,null,"International call sign",null,null,null,null,null,null,{"$f":"Appel_international","v":228128000}]
["HEURE / HORA / HOUR",null,null,null,null,null,{"$f":"Heure_départ","v":"15:45:00"},null,null,null,null,"HEURE / HORA / HOUR",null,null,null,null,null,null,{"$f":"Heure_retour","v":"13:00:00"},null,null,null,null,null,null,null,null,null,null,"OMI number",null,null,null,null,null,null,{"$f":"OMI","v":8812186}]
["LOCH / CORREDA / LOCH",null,null,null,null,null,{"$f":"Loch_départ","v":0},null,null,null,null,"LOCH / CORREDA / LOCH",null,null,null,null,null,null,{"$f":"Loch_retour","v":8453},null,null,null,null,null,null,null,null,null,null,"CFR number",null,null,null,null,null,null,{"$f":"CFR","v":"FRA 000752564"}]
[]
[null,null,null,null,null,null,null,null,null,null,null,"Une calée, un objet flottant ou une bouée par ligne"]
[]
["DATE","HEURE","LATITUDE\nchaque calée ou à midi","LONGITUDE\nchaque calée ou à midi","ZEE","T°C \nmer","VENT",null,"CALEE",null,null,"CAPTURE ESTIMEE (en tonnes)",null,null,null,null,null,null,null,null,null,null,null,null,null,null,null,null,null,"ASSOCIATION",null,null,null,null,null,null,"OBJET FLOTTANT",null,null,null,null,"BOUEE INSTRUMENTEE",null,null,null,null,"COMMENTAIRES"]
[]
[null,null,null,null,null,null,"VIENTO",null,"LANCE",null,null,"ESTIMATION DE LA CAPTURA (en toneladas)",null,null,null,null,null,null,null,null,null,null,null,null,null,null,null,null,null,"ASSOCIACION",null,null,null,null,null,null,"OBJETO",null,null,null,null,"BOYA",null,null,null,null,"COMMENTARIOS"]
[]
[null,null,null,null,null,null,"WIND",null,"FISHING SET",null,null,"ESTIMATED CATCH (metric tons)",null,null,null,null,null,null,null,null,null,null,null,null,null,null,null,null,null,"ASSOCIATION",null,null,null,null,null,null,"FLOATING OBJECT",null,null,null,null,"INSTRUMENTED BUOY",null,null,null,null,"COMMENTS"]
[]
["FECHA","HORA","LATITUDE\ncada lance o mediada","LONGITUD\ncada lance o mediada","ZEE","T°C \nmar","Direction / Dirreccion / Direction\nDegrés / Grados / Degrees","Vitesse / Velocidad / Speed\nNœuds / Nudos / Knots","Portante / Positivo / Successful","Nulle / Nullo / Nil","Type de calée / Lance typo / Fishing set type",1,null,null,null,2,null,3,null,null,null,4,null,5,null,null,6,null,null,"Banc Libre / Banco Libre / Free School","Objet flottant / Objeto / FOB","Balise / Balisa / Beacon","Baliseur / Barco de appoyo\n Support vessel","Requin baleine / Tiburon ballena \nWhale shark","Baleine / Ballena / Whale","Oiseaux / Aves / Birds","ACTIVITE \nSUR L'OBJET","TYPE D'OBJET","TYPE DE DCP\n DERIVANT","RISQUE DE MAILLAGE",null,"ACTIVITE \nSUR LA BOUEE","BOUEE DÉJÀ PRESENTE",null,"BOUEE DEPLOYEE",null,"Problèmes divers\nDétails sur les prises accessoires\nTaille du banc\nAutres associations\nAutres remarques"]
[]
[null,null,null,null,null,null,null,null,null,null,null,"ALBACORE",null,null,null,"LISTAO",null,"PATUDO",null,null,null,"GERMON",null,"AUTRES ESPECES",null,null,"REJETS",null,null,null,null,null,null,null,null,null,null,null,null,null,null,null,"BOYA ANTIGUA",null,"BOYA NUEVA"]
[]
[null,null,null,null,null,null,null,null,null,null,null,"RABIL",null,null,null,"LISTADO",null,"PATUDO",null,null,null,"ALBACORA",null,"OTRAS ESPECIES",null,null,"DESCARTES",null,null,null,null,null,null,null,null,null,"ACTIVIDAD SOBRE EL OBJETO","TIPO DE OBJETO","TIPO DE DCP","ENTANGLING RISK",null,"ACTIVIDAD SOBRE LA BOYA","BUOY ALREADY ON THE FOB",null,"DEPLOYED BUOY"]
[]
["DATE","TIME","LATITUDE\neach set or at midday","LONGITUD\neach set or at midday","EEZ","T°C \nsea",null,null,null,null,null,"YELLOWFIN",null,null,null,"SKIPJACK",null,"BIGEYE",null,null,null,"ALBACORE",null,"OTHER SPECIES",null,null,"DISCARDS",null,null,null,null,null,null,null,null,null,null,null,null,"En surface \nParte surperficial\nSurface","Sous la surface\nParte sumergida\nUnderwater",null,"TYPE","NUMERO","TYPE","NUMERO"]
[]
[null,null,null,null,null,null,null,null,null,null,null,"YFT +10",null,"YFT-10",null,"SKJ",null,"BET +10",null,"BET - 10",null,"ALB",null,"OTH",null,null,"DSC",null,null,null,null,null,null,null,null,null,"FOB ACTIVITY","FOB TYPE","DFAD TYPE",null,null,"BUOY \nACTIVITY","TIPO","NUMERO","TIPO","NUMERO"]
[null,null,null,null,null,null,null,null,null,null,null,"Taille","Capture","Taille","Capture","Taille","Capture","Taille","Capture","Taille","Capture","Taille","Capture","Espèce","Taille","Capture","Espèce","Taille","Capture"]
[null,null,null,null,null,null,null,null,null,null,null,"Tailla","Captura","Tailla","Captura","Tailla","Captura","Tailla","Captura","Tailla","Captura","Tailla","Captura","Especie","Tailla","Captura","Especie","Tailla","Captura",null,null,null,null,null,null,null,null,null,null,null,null,null,"TYPE","ID","TYPE","ID"]
[null,null,null,null,null,null,null,null,null,null,null,"Size","Catch","Size","Catch","Size","Catch","Size","Catch","Size","Catch","Size","Catch","Species","Size","Catch","Species","Size","Catch"]
["2020-01-12","17:15:00","04°54'N","003°57'W","Côte d'Ivoire",30,200,12]
["2020-01-13","15:00:00","01°09' N","004°25' W","Eaux internationales",29.8,200,8]
["2020-01-14","19:15:00","02°12'S","009°42'W","Eaux internationales",28.4,180,15]
["2020-01-15","16:20:00","01°42'S","011°10'W","Eaux internationales",28.4,190,12]
["2020-01-16","09:10:00","02°03' S","014°57' W","Eaux internationales",27.8,270,10,null,1,"Banc Libre",null,null,null,null,null,null,null,null,null,null,null,null,null,null,null,null,null,null,1]
["2020-01-17","12:50:00","02°06S","014°36'W","Eaux internationales",28,190,10,1,null,"Banc Libre","20 - 40 kg",1,null,null,null,null,null,null,null,null,null,null,null,null,null,null,null,null,1]
["2020-01-18","19:00:00","02°10'S","009°53'W","Eaux internationales",29,215,5]
["2020-01-19","11:40:00","02°29'S","006°35'W","Eaux internationales",28.7,200,15]
["2020-01-20","08:45:00","02°36'S","005°33'W","Eaux internationales",28.4,180,15]
["2020-01-21","18:15:00","01°52'S","001°36'W","Eaux internationales",28.4,190,6]
["2020-01-22","16:45:00","01°44'S","000°54'E","Eaux internationales",28.2,200,15]
["2020-01-23","12:10:00","02°23'S","000°02'W","Eaux internationales",27.9,200,15]
["2020-01-24","08:15:00","02°09'S","000°42'W","Eaux internationales",27.9,200,10,1,null,"Banc Libre","40 - 60 kg",14,null,null,null,null,"10 - 20 kg",1,null,null,null,null,null,null,null,null,null,null,1]
["2020-01-24","11:20:00","02°05'S","000°43'W","Eaux internationales",27.9,200,10,1,null,"Banc Libre","40 - 60 kg",20,null,null,null,null,null,null,null,null,null,null,null,null,null,null,null,null,1]
["2020-01-25","09:35:00","01°55'S","001°04'W","Eaux internationales",28.5,200,7,1,null,"Banc Libre","40 - 60 kg",7,null,null,null,null,null,null,null,null,null,null,null,null,null,null,null,null,1]
["2020-01-25","15:50:00","02°21'S","001°25'W","Eaux internationales",28.5,200,7,null,1,"Banc Libre",null,null,null,null,null,null,null,null,null,null,null,null,null,null,null,null,null,null,1]
["2020-01-26","07:20:00","02°20'S","001°27'W","Eaux internationales",28.5,200,10,1,null,"Banc Libre","40 - 60 kg",1,null,null,null,null,null,null,null,null,null,null,null,null,null,null,null,null,1]
["2020-01-26","17:00:00","01°52'S","002°34'W","Eaux internationales",28.5,200,10,1,null,"Banc Libre","40 - 60 kg",24,null,null,null,null,"> 60 kg",2,null,null,null,null,null,null,null,null,null,null,1]
["2020-01-27","07:10:00","01°51'S","002°38'W","Eaux internationales",28.5,190,10,1,null,"Banc Libre","40 - 60 kg",40,null,null,null,null,"40 - 60 kg",1,null,null,null,null,null,null,null,null,null,null,1]
["2020-01-27","11:10:00","01°51'S","002°36'W","Eaux internationales",28.5,190,10,1,null,"Banc Libre","40 - 60 kg",6,null,null,null,null,null,null,null,null,null,null,null,null,null,null,null,null,1]
["2020-01-28","18:20:00","02°09'S","001°24'W","Eaux internationales",28,200,10]
["2020-01-29","18:15:00","02°07'S","001°14'W","Eaux internationales",28.4,200,10]
["2020-01-30","08:05:00","01°51'S","001°22'W","Eaux internationales",28.1,200,10,1,null,"Banc Libre","40 - 60 kg",23,null,null,null,null,"> 60 kg",1,null,null,null,null,null,null,null,null,null,null,1]
["2020-01-30","11:50:00","01°48'S","001°26'W","Eaux internationales",28.1,200,10,1,null,"Banc Libre","40 - 60 kg",7,null,null,null,null,null,null,null,null,null,null,null,null,null,null,null,null,1]
["2020-01-31","18:20:00","00°33'S","000°21'W","Eaux internationales",28.2,200,9]
["2020-02-01","18:30:00","01°18'N","000°54'W","Eaux internationales",29.3,180,6]
["2020-02-02","15:20:00","01°19'N","003°03'W","Eaux internationales",30,180,5]
["2020-02-03","08:55:00","01°16'N","007°06'W","Côte d'Ivoire",29.6,180,5,null,1,"Banc Libre",null,null,null,null,null,null,null,null,null,null,null,null,null,null,null,null,null,null,1]
["2020-02-03","10:45:00","01°17'N","007°07'W","Côte d'Ivoire",29.6,180,5,null,1,"Banc Libre",null,null,null,null,null,null,null,null,null,null,null,null,null,null,null,null,null,null,1]
["2020-02-03","13:00:00","01°16'N","007°06'W","Côte d'Ivoire",29.6,180,5,1,null,"Banc Libre","> 60 kg",110,null,null,null,null,"> 60 kg",5,null,null,null,null,null,null,null,null,null,null,1]
["2020-02-03","17:40:00","01°16'N","007°05'W","Côte d'Ivoire",29.6,180,5,null,1,"Banc Libre",null,null,null,null,null,null,null,null,null,null,null,null,null,null,null,null,null,null,1]
["2020-02-04","08:05:00","01°15'N","007°05'W","Côte d'Ivoire",29.5,210,8,1,null,"Banc Libre","> 60 kg",15,null,null,null,null,null,null,null,null,null,null,null,null,null,null,null,null,1]
["2020-02-04","11:10:00","01°19'N","007°09'W","Côte d'Ivoire",29.6,210,9,1,null,"Banc Libre","> 60 kg",5,null,null,null,null,null,null,null,null,null,null,null,null,null,null,null,null,1]
["2020-02-04","15:50:00","01°13'N","007°26'W","Côte d'Ivoire",29.7,210,8,null,1,"Banc Libre",null,null,null,null,null,null,null,null,null,null,null,null,null,null,null,null,null,null,1]
["2020-02-05","08:10:00","01°18'N","006°42'W","Côte d'Ivoire",29.6,210,10,1,null,"Banc Libre","> 60 kg",5,null,null,null,null,null,null,null,null,null,null,null,null,null,null,null,null,1]
["2020-02-05","11:05:00","01°17'N","006°39'N","Côte d'Ivoire",29.6,190,7,1,null,"Banc Libre","> 60 kg",26,null,null,null,null,"> 60 kg",1,null,null,null,null,null,null,null,null,null,null,1]
["2020-02-05","15:00:00","01°15'N","006°38'W","Côte d'Ivoire",29.6,190,7,null,1,"Banc Libre",null,null,null,null,null,null,null,null,null,null,null,null,null,null,null,null,null,null,1]
["2020-02-06","07:45:00","01°22'N","006°33'W","Côte d'Ivoire",29.7,190,8,null,1,"Banc Libre",null,null,null,null,null,null,null,null,null,null,null,null,null,null,null,null,null,null,1]
["2020-02-06","10:25:00","01°17'N","006°31'W","Côte d'Ivoire",29.7,190,8,null,1,"Banc Libre",null,null,null,null,null,null,null,null,null,null,null,null,null,null,null,null,null,null,1]
["2020-02-06","16:00:00","00°54' N","006°48'W","Eaux internationales",29.7,190,8,1,null,"Banc Libre","> 60 kg",9,null,null,null,null,null,null,null,null,null,null,null,null,null,null,null,null,1]
["2020-02-07","10:50:00","01°24'N","007°15'W","Côte d'Ivoire",29.6,190,8,null,1,"Banc Libre",null,null,null,null,null,null,null,null,null,null,null,null,null,null,null,null,null,null,1]
["2020-02-07","16:30:00","01°12'N","006°47'W","Côte d'Ivoire",30.1,185,8,1,null,"Banc Libre","> 60 kg",50,null,null,null,null,null,null,null,null,null,null,null,null,null,null,null,null,1]
["2020-02-08","13:40:00","01°25'N","005°06'W","Eaux internationales",30,180,10]
["2020-02-09","10:40:00","01°05'N","006°58'W","Côte d'Ivoire",29.9,185,20]
["2020-02-10","11:25:00","01°42'S","003°50'W","Eaux internationales",28.5,140,12,1,null,"Banc Libre","> 60 kg",20,null,null,null,null,null,null,null,null,null,null,null,null,null,null,null,null,1]
["2020-02-10","15:55:00","01°42'S","003°54'W","Eaux internationales",28.5,140,8,1,null,"Banc Libre","> 60 kg",4,null,null,null,null,null,null,null,null,null,null,null,null,null,null,null,null,1]
["2020-02-11","08:45:00","01°42'S","003°52'W","Eaux internationales",28.5,140,8,null,1,"Banc Libre",null,null,null,null,null,null,null,null,null,null,null,null,null,null,null,null,null,null,1]
["2020-02-11","10:50:00","01°43'S","003°53'W","Eaux internationales",28.6,140,8,1,null,"Banc Libre","> 60 kg",10,null,null,null,null,"> 60 kg",12,null,null,null,null,null,null,null,null,null,null,1]
["2020-02-11","14:40:00","01°45'S","003°52'W","Eaux internationales",28.8,150,5,1,null,"Banc Libre","> 60 kg",5,null,null,null,null,"> 60 kg",3,null,null,null,null,null,null,null,null,null,null,1]
["2020-02-12","10:15:00","02°26'S","005°07'W","Eaux internationales",28.7,150,8,null,1,"Banc Libre",null,null,null,null,null,null,null,null,null,null,null,null,null,null,null,null,null,null,1]
["2020-02-13","15:35:00","01°58'S","003°58'W","Eaux internationales",28.9,150,8,null,1,"Banc Libre",null,null,null,null,null,null,null,null,null,null,null,null,null,null,null,null,null,null,1]
["2020-02-14","18:15:00","01°01'S","002°02'W","Eaux internationales",29,190,10]
["2020-02-15","16:50:00","00°57'N","003°02'W","Eaux internationales",30.1,180,8]
["2020-02-16","17:50:00","01°00'N","005°31'W","Eaux internationales",29.9,180,6]
["2020-02-17","10:10:00","01°45'N","006°59'W","Côte d'Ivoire",30,170,10,null,1,"Banc Libre",null,null,null,null,null,null,null,null,null,null,null,null,null,null,null,null,null,null,1]
["2020-02-17","13:40:00","01°46'N","007°01'W","Côte d'Ivoire",30,170,10,1,null,"Banc Libre","> 60 kg",2,null,null,null,null,null,null,null,null,null,null,null,null,null,null,null,null,1]
["2020-02-18","13:45:00","01°48'S","006°37'W","Eaux internationales",29,180,15]
["2020-02-19","09:00:00","01°00'N","008°04'W","Libéria",30,180,10,1,null,"Banc Libre","> 60 kg",7,null,null,null,null,null,null,null,null,null,null,null,null,null,null,null,null,1]
["2020-02-20","16:30:00","01°15'N","011°10'W","Eaux internationales",30,180,12]
["2020-02-21","09:40:00","01°20'N","010°46'W","Eaux internationales",29.8,180,15,1,null,"Banc Libre","40 - 60 kg",33,null,null,null,null,null,null,null,null,null,null,null,null,null,null,null,null,1]
["2020-02-22","11:40:00","01°11'N","009°02'W","Libéria",29.9,200,8]
["2020-02-23","11:50:00","00°57'N","006°38'W","Côte d'Ivoire",30,170,11]
["2020-02-24","10:15:00","04°45'N","003°53'W","Côte d'Ivoire",29.2,170,10]

{"sheet":"3.Tonnage bord","index":2,"n_rows":15,"n_cols":5,"rows_kept":15,"cut":false,"hidden":false,"merged":[[12,1,12,4],[13,1,13,4]]}
[]
[null,"Information pêche"]
[null,{"$f":"Navire","v":"VIA AVENIR"},null,"Tonnage le :",{"$f":"TODAY()","v":"2020-02-25"}]
[null,"Albacore +10",":",{"$f":"SUM('2.Logbook'!$M$31:$M$532)+'1.Marée'!$T$5","v":444}]
[null,"Albacore -10",null,{"$f":"SUM('2.Logbook'!$O$31:$O$532)+'1.Marée'!$T$6","v":0}]
[null,"Listao",":",{"$f":"SUM('2.Logbook'!$Q$31:$Q$532)+'1.Marée'!$T$7","v":0}]
[null,"Patudo +10",":",{"$f":"SUM('2.Logbook'!$S$31:$S$532)+'1.Marée'!$T$8","v":26}]
[null,"Patudo -10",null,{"$f":"SUM('2.Logbook'!$U$31:$U$532)+'1.Marée'!$T$9","v":0}]
[null,"Germon",":",{"$f":"SUM('2.Logbook'!$W$31:$W$532)+'1.Marée'!$T$10","v":0}]
[]
[null,"Total",":",{"$f":"SUM(D4:D9)","v":470}]
[]
[null,"1- ouvrir un nouveau mail dans votre messagerie"]
[null,"2- coller dans le corps du texte"]
[null,"3- envoyer votre email à armement"]

{"sheet":"4.Statistiques","index":3,"n_rows":42,"n_cols":4,"rows_kept":42,"cut":false,"hidden":false,"merged":[[1,1,1,3],[2,1,2,3]]}
[]
[null,{"$f":"Navire","v":"VIA AVENIR"}]
[null,"Statistiques  Captures"]
[null,"N° Marée",{"$f":"Marée","v":"GP-01-2020"}]
[null,"Du :",{"$f":"Date_départ","v":"2020-01-12"}]
[null,"Au :",{"$f":"Date_retour","v":"2020-02-24"}]
[]
[null,null,"Sur banc libre (en t)"]
[null,"YF+10",{"$f":"SUMIFS('2.Logbook'!$M$31:$M$532,'2.Logbook'!$K$31:$K$532,\"Banc Libre\")","v":444},{"$f":"IF(C36=0,\"\",C9/C36)","v":""}]
[null,"YF-10",{"$f":"SUMIFS('2.Logbook'!$O$31:$O$532,'2.Logbook'!$K$31:$K$532,\"Banc Libre\")","v":0},0]
[null,"SKJ",{"$f":"SUMIFS('2.Logbook'!$Q$31:$Q$532,'2.Logbook'!$K$31:$K$532,\"Banc Libre\")","v":0},""]
[null,"BE+10",{"$f":"SUMIFS('2.Logbook'!$S$31:$S$532,'2.Logbook'!$K$31:$K$532,\"Banc Libre\")","v":26},1]
[null,"BE-10",{"$f":"SUMIFS('2.Logbook'!$U$31:$U$532,'2.Logbook'!$K$31:$K$532,\"Banc Libre\")","v":0},""]
[null,"Germon",{"$f":"SUMIFS('2.Logbook'!$W$31:$W$532,'2.Logbook'!$K$31:$K$532,\"Banc Libre\")","v":0},""]
[]
[]
[null,null,"Sur DCP (en t)"]
[null,"YF+10",{"$f":"SUMIFS('2.Logbook'!$M$31:$M$532,'2.Logbook'!$K$31:$K$532,\"Banc Objet\",'2.Logbook'!$AL$31:$AL$532,{\"DCP dérivant\";\"DCP ancré\"}  )","v":0},{"$f":"IF($C$36=0,\"\",C18/$C$36)","v":""}]
[null,"YF-10",{"$f":"SUMIFS('2.Logbook'!$O$31:$O$532,'2.Logbook'!$K$31:$K$532,\"Banc Objet\",'2.Logbook'!$AL$31:$AL$532,{\"DCP dérivant\";\"DCP ancré\"}  )","v":0},{"$f":"IF($C$37=0,\"\",C19/$C$37)","v":0}]
[null,"SKJ",{"$f":"SUMIFS('2.Logbook'!$Q$31:Q$532,'2.Logbook'!$K$31:$K$532,\"Banc Objet\",'2.Logbook'!$AL$31:$AL$532,{\"DCP dérivant\";\"DCP ancré\"}  )","v":0},{"$f":"IF($C$38=0,\"\",C20/$C$38)","v":""}]
[null,"BE+10",{"$f":"SUMIFS('2.Logbook'!$S$31:$S$532,'2.Logbook'!$K$31:$K$532,\"Banc Objet\",'2.Logbook'!$AL$31:$AL$532,{\"DCP dérivant\";\"DCP ancré\"}  )","v":0},{"$f":"IF($C$39=0,\"\",C21/$C$39)","v":0}]
[null,"BE-10",{"$f":"SUMIFS('2.Logbook'!$U$31:$U$532,'2.Logbook'!$K$31:$K$532,\"Banc Objet\",'2.Logbook'!$AL$31:$AL$532,{\"DCP dérivant\";\"DCP ancré\"}  )","v":0},{"$f":"IF($C$40=0,\"\",C22/$C$40)","v":""}]
[null,"Germon",{"$f":"SUMIFS('2.Logbook'!$W$31:$W$532,'2.Logbook'!$K$31:$K$532,\"Banc Objet\",'2.Logbook'!$AL$31:$AL$532,{\"DCP dérivant\";\"DCP ancré\"}  )","v":0},{"$f":"IF($C$41=0,\"\",C23/$C$41)","v":""}]
[]
[]
[null,null,"Sur épave (en t)"]
[null,"YF+10",{"$f":"SUMIFS('2.Logbook'!$M$31:$M$532,'2.Logbook'!$K$31:$K$532,\"Banc Objet\",'2.Logbook'!$AL$31:$AL$532, \"<>\" & {\"DCP dérivant\";\"DCP ancré\"}  )","v":0},{"$f":"IF($C$36=0,\"\",C27/$C$36)","v":""}]
[null,"YF-10",{"$f":"SUMIFS('2.Logbook'!$O$31:$O$532,'2.Logbook'!$K$31:$K$532,\"Banc Objet\",'2.Logbook'!$AL$31:$AL$532,\"<>\" &{\"DCP dérivant\";\"DCP ancré\"}  )","v":0},{"$f":"IF($C$37=0,\"\",C28/$C$37)","v":0}]
[null,"SKJ",{"$f":"SUMIFS('2.Logbook'!$Q$31:Q$532,'2.Logbook'!$K$31:$K$532,\"Banc Objet\",'2.Logbook'!$AL$31:$AL$532,\"<>\" &{\"DCP dérivant\";\"DCP ancré\"}  )","v":0},{"$f":"IF($C$38=0,\"\",C29/$C$38)","v":""}]
[null,"BE+10",{"$f":"SUMIFS('2.Logbook'!$S$31:$S$532,'2.Logbook'!$K$31:$K$532,\"Banc Objet\",'2.Logbook'!$AL$31:$AL$532,\"<>\" &{\"DCP dérivant\";\"DCP ancré\"}  )","v":0},{"$f":"IF($C$39=0,\"\",C30/$C$39)","v":0}]
[null,"BE-10",{"$f":"SUMIFS('2.Logbook'!$U$31:$U$532,'2.Logbook'!$K$31:$K$532,\"Banc Objet\",'2.Logbook'!$AL$31:$AL$532,\"<>\" &{\"DCP dérivant\";\"DCP ancré\"}  )","v":0},{"$f":"IF($C$40=0,\"\",C31/$C$40)","v":""}]
[null,"Germon",{"$f":"SUMIFS('2.Logbook'!$W$31:$W$532,'2.Logbook'!$K$31:$K$532,\"Banc Objet\",'2.Logbook'!$AL$31:$AL$532,\"<>\" &{\"DCP dérivant\";\"DCP ancré\"}  )","v":0},{"$f":"IF($C$41=0,\"\",C32/$C$41)","v":""}]
[]
[]
[null,null,"Totaux   (en T)"]
[null,"YF+10",{"$f":"SUM('2.Logbook'!$O$31:$O$532)","v":0}]
[null,"YF-10",{"$f":"SUM('2.Logbook'!$M$31:$M$532)","v":444}]
[null,"SKJ",{"$f":"SUM('2.Logbook'!$Q$31:$Q$532)","v":0}]
[null,"BE+10",{"$f":"SUM('2.Logbook'!$S$31:$S$532)","v":26}]
[null,"BE-10",{"$f":"SUM('2.Logbook'!$U$31:$U$532)","v":0}]
[null,"Germon",{"$f":"SUM('2.Logbook'!$W$31:$W$532)","v":0}]
[null,"Total",{"$f":"SUM(C36:C41)","v":470}]

{"sheet":"5.Définitions","index":4,"n_rows":80,"n_cols":2,"rows_kept":80,"cut":false,"hidden":false,"merged":[]}
["TAILLE DES CAPTURES"]
["ALBACORE, PATUDO, GERMON","Description"]
["< 1,8 kg","Poisson de moins de 1,8 kg"]
["1,8 - 3,4 kg","Poisson de 1,8 à 3,4 kg"]
["3,4 - 10 kg","Poisson de 3,4 à 10 kg"]
["10 - 20 kg","Poisson de 10 à 20 kg"]
["20 - 40 kg","Poisson de 20 à 40 kg"]
["40 - 60 kg","Poisson de 40 à 60 kg"]
["> 60 kg","Poisson de plus de 60 kg"]
[]
["LISTAO","Description"]
["< 1,8 kg","Poisson de moins de 1,8 kg"]
["1,8 - 3,4 kg","Poisson de 1,8 à 3,4 kg"]
["> 3,4 kg","Poisson de plus de 3,4 kg"]
[]
["OBJETS FLOTTANTS"]
["Types d'activités sur les objets flottants","Description"]
["Mise à l'eau","Déploiement d'un nouveau DCP"]
["Visite sans pêche","Visite d'un DCP ou d'une épave déjà en mer et qui n'est pas suivie d'une calée"]
["Visite avec pêche","Visite d'un DCP ou d'une épave déjà en mer suivie d'une calée"]
["Renforcement","Déploiement d'un DCP sur un autre DCP ou sur une épave pour améliorer sa flottabilité "]
["Retrait","Récupération en mer d'un DCP ou d'une épave"]
["Perte","Action involontaire. Se produit par exemple si un autre bateau récupère l'objet, si la bouée arrête d'émettre ou si l'objet coule."]
["Fin d'utilisation","Action volontaire. Se produit si le bateau, son baliseur ou l'armement désactive la bouée. L'abandon d'un DCP en mer sans balise est interdit."]
[]
["Types d'objets flottants","Description / Exemple"]
["DCP ancré","Objet construit et ancré par des pêcheurs pour attirer du poisson"]
["DCP dérivant","Objet dérivant construit et déployé par des pêcheurs pour attirer du poisson"]
["Epave artificielle liée à la pêche","Par exemple, un morceau de filet, une aussière, une épave de bateau, un baliseur"]
["Epave artificielle liée à d'autres activités humaines","Par exemple, un bidon, un touret de câble, une bouée océanique"]
["Epave naturelle d'origine animale","Par exemple, une charogne de baleine ou de requin baleine"]
["Epave naturelle d'origine végétale","Par exemple, un tas de paille, un amas d'algues ou des branches d'arbre"]
[]
["Types de DCP","Description"]
["DCP français émergé bambou","Radeau type français, avec un cadre 100% bambou émergé"]
["DCP français émergé métal","Radeau type français, avec un cadre 100% métal émergé"]
["DCP français émergé bambou-métal","Radeau type français, avec un cadre mixte bambou métal"]
["DCP français furtif","Radeau type français, sous la surface"]
["DCP français cage","Radeau-cage type français, sous la surface"]
["DCP espagnol émergé bambou","Radeau type espagnol, avec un cadre 100% bambou émergé"]
["DCP espagnol émergé métal","Radeau type espagnol, avec un cadre 100% métal émergé"]
["DCP espagnol émergé bambou-métal","Radeau type espagnol, avec un cadre mixte bambou métal"]
["DCP espagnol émergé plastique","Radeau type espagnol, avec un cadre 100% plastique émergé"]
["DCP espagnol furtif","Radeau type espagnol, avec un cadre mixte bambou métal"]
["DCP espagnol cage","Radeau type espagnol, sous la surface"]
["DCP coréen","Radeau type coréen"]
["Autre DCP dérivant","A décrire dans les commentaires"]
["Autre objet","A décrire dans les commentaires"]
[]
["Risque de maillage","Description"]
["Pas de mailles","Présence de mailles en surface (risque pour les tortues) ou sous la surface (risque pour les requins). L'utilisation de DCP avec mailles est interdite par la CTOI."]
["< 6, 5 cm","Présence de mailles de 6,5 cm ou moins. Faible risque de maillage."]
["> 6,5 cm","Présence de mailles de plus de 6,5 cm. Fort risque de maillage."]
["Mailles de taille inconnue","La taille des mailles n'a pas pu être estimée"]
["Non observable","La présence de mailles n'a pas pu être observée"]
[]
[]
[]
["BOUEES"]
["Types d'activités sur les bouées","Description"]
["Mise à l'eau","Déploiement d'un DCP neuf avec une bouée / déploiement d'une bouée sur un objet dérivant sans bouée"]
["Visite","Visite d'un DCP ou d'une épave équipée d'une bouée  / visite d'une bouée dérivant seule"]
["Transfert","Changement de bouée"]
["Retrait","Récupération en mer d'une bouée.  L'abandon d'un DCP en mer sans balise est interdit."]
["Perte","Action involontaire. Se produit par exemple si un autre bateau récupère l'objet et éteint la bouée, si la bouée arrête d'émettre ou si la bouée coule."]
["Fin d'utilisation","Action volontaire. Se produit si le bateau, son baliseur ou l'armement désactive la bouée. L'abandon d'un DCP en mer sans balise est interdit."]
[]
["Types de bouées","Description"]
["M3i","Marine Instrument M3i"]
["M3i+","Marine Instrument M3i+"]
["M4i","Marine Instrument M4i"]
["Marine Instruments modèle inconnu","Bouée Marine Instruments dont le modèle n'a pas été observé ou n'est pas présent dans la liste précédente"]
["Ortbit","Thalos Ortbit"]
["Thalos modèle inconnu","Bouée Thalos dont le modèle n'a pas été observé ou n'est pas présent dans la liste précédente"]
["SLX+","Satlink SLX+"]
["ISD+","Satlink ISD+"]
["Autre Satlink","Autre modèle Satlink (non utilisé par la flotte française)"]
["Satlink modèle inconnu","Bouée Satlink dont le modèle n'a pas été observé"]
["Marque et modèle inconnus","Bouée pour laquelle ni la marque, ni le modèle n'ont pu être observés"]
["Pas de bouée","Objet dérivant sans bouée"]